bitfinex/quotes_ETHUSD_20220215
["timestamp","ask_amount","ask_price","bid_price","bid_amount"]
[1644915847118,1.70049757,3084.1,3083.7,0.00925678]
[1644915848219,1.70049757,3084.1,3083.1,1.62151]
[1644915848420,1.70049757,3084.1,3083.7,0.00925676]
[1644915849066,0.81076,3084.1,3083.8,0.57349853]
[1644915849274,0.00428507,3084.3,3083.8,0.57349853]
[1644915849275,0.00428507,3084.3,3083.8,0.87349853]
[1644915849471,3.1269,3084.8,3083.9,0.57349853]
[1644915849667,2.893,3084.9,3084.0,0.57349853]
[1644915849868,0.00428514,3084.3,3084.0,0.57349853]
[1644915850070,0.00428514,3084.3,3084.1,0.57349853]
[1644915850268,0.00428514,3084.3,3084.2,0.57349853]
[1644915850668,0.81048,3084.8,3084.2,0.57349853]
[1644915850968,0.00129207,3084.4,3084.2,0.57349853]
[1644915851868,0.78714808,3084.9,3084.2,0.57349853]
[1644915852068,0.00129207,3084.5,3084.2,1.38400853]
[1644915852269,0.00129207,3084.5,3084.3,0.57349853]
[1644915852519,0.00129207,3084.5,3084.4,0.57349853]
[1644915852816,0.00129207,3084.5,3084.0,0.3]
[1644915853017,0.00129207,3084.5,3084.1,0.57495345]
[1644915853018,0.81056,3084.5,3084.1,0.57495345]
[1644915853621,0.11701674,3084.5,3084.1,0.57495345]
[1644915853922,0.11701674,3084.5,3084.2,0.57495345]
[1644915854118,0.11701674,3084.5,3084.3,0.57495345]
[1644915854318,0.11701674,3084.5,3084.4,0.57495345]
[1644915854518,1.73334796,3084.5,3084.4,0.57495345]
[1644915855119,1.73334796,3084.5,3083.7,0.00993218]
[1644915855320,0.81073,3084.3,3083.8,0.56298057]
[1644915855521,0.81078,3084.1,3083.8,0.56298057]
[1644915855724,0.81078,3084.1,3083.0,1.75957997]
[1644915855725,0.80241263,3084.0,3083.9,0.56248887]
[1644915855931,0.80241263,3084.0,3083.7,0.00993225]
[1644915855932,0.8371494,3083.9,3083.7,0.00993225]
[1644915856164,0.8371494,3083.9,3083.8,0.56238137]
[1644915856365,1.1371494,3083.9,3083.8,0.56238137]
[1644915856571,6.65,3083.8,3082.8,0.60837573]
[1644915856766,6.65,3083.8,3082.6,2.57122063]
[1644915856767,1.4284494,3083.9,3082.9,1.41930573]
[1644915856966,1.4284494,3083.9,3083.7,0.00993207]
[1644915857570,0.5913,3083.9,3083.7,0.00993207]
[1644915857768,0.5913,3083.9,3082.6,0.13819997]
[1644915857769,0.81083,3083.6,3083.3,0.81083]
[1644915858169,0.49104883,3084.1,3083.3,1.6215682]
[1644915858170,0.79104883,3084.1,3083.3,1.6215682]
[1644915858371,0.00428493,3084.3,3083.3,0.81083]
[1644915858571,0.00428493,3084.3,3083.4,1.03073441]
[1644915858970,0.81064,3084.2,3083.5,0.81072]
[1644915859173,0.81064,3084.2,3083.7,0.00993207]
[1644915860031,0.3,3084.1,3083.7,0.00993207]
[1644915860231,0.3,3084.1,3083.3,0.60837573]
[1644915860232,0.81084,3084.0,3083.3,0.60837573]
[1644915860432,0.81084,3084.0,3083.7,0.00993204]
[1644915860433,3.43257,3084.0,3083.7,0.00993204]
[1644915860635,2.62173,3084.0,3083.7,0.00993204]
[1644915860832,1.62173,3084.0,3083.7,0.00993204]
[1644915861033,0.3,3083.9,3083.7,0.00993204]
[1644915861232,1.11087,3083.9,3083.7,0.00993204]
[1644915861432,1.62175,3083.9,3083.2,0.60837573]
[1644915861633,1.62175,3083.9,3083.6,0.00993221]
[1644915861936,0.81087,3083.9,3083.6,0.00993221]
[1644915862532,0.81087,3083.9,3083.3,0.60837573]
[1644915862932,0.81087,3083.9,3083.6,0.00993235]
[1644915863766,0.81087,3083.9,3083.2,0.60837573]
[1644915863969,0.81087,3083.9,3083.6,0.00965861]
[1644915864969,0.81087,3083.9,3083.2,0.60837573]
[1644915865171,1.62169,3083.9,3083.2,0.60837573]
[1644915865370,0.81087,3083.9,3083.6,0.00965861]
[1644915866171,0.81087,3083.9,3083.3,0.81088]
[1644915866373,0.81087,3083.9,3082.8,0.60837573]
[1644915866374,1.1109529,3083.7,3082.8,0.60837573]
[1644915866573,4.3413754,3083.6,3082.8,0.60837573]
[1644915866774,0.3,3083.5,3082.8,0.60837573]
[1644915866971,0.3,3083.5,3082.7,0.60837573]
[1644915867276,3.2444,3083.4,3082.6,0.60837573]
[1644915867529,0.81103,3083.2,3082.6,0.60837573]
[1644915867729,0.81103,3083.2,3082.9,0.00966043]
[1644915868129,2.4332,3083.2,3082.9,0.00966043]
[1644915868329,0.81103,3083.2,3082.9,0.00966043]
[1644915868528,0.81103,3083.2,3082.6,0.60837573]
[1644915868728,0.81104,3083.1,3082.7,0.81102]
[1644915868928,4.82015005,3083.6,3082.8,0.60837573]
[1644915868929,1.28974465,3083.6,3082.8,0.60837573]
[1644915869128,0.3,3083.6,3082.8,0.60837573]
[1644915869330,1.62188,3083.5,3082.7,0.60837573]
[1644915869531,3.78240421,3083.6,3082.6,0.60837573]
[1644915869935,0.8109578,3083.4,3082.6,0.60837573]
[1644915870130,0.81101,3083.1,3082.6,0.60837573]
[1644915870535,0.81101,3083.1,3082.6,2.23029573]
[1644915870931,0.81101,3083.1,3082.6,1.62192]
[1644915870932,3.51674107,3083.0,3082.6,1.62192]
[1644915871171,1.62218,3082.9,3082.5,0.8111]
[1644915871571,1.62218,3082.9,3082.3,0.60837573]
[1644915871771,0.3,3082.8,3082.3,0.60837573]
[1644915871969,2.7333573,3082.8,3082.3,0.60837573]
[1644915872169,4.18366335,3082.7,3082.3,0.60837573]
[1644915872375,4.18366335,3082.7,3082.1,0.60837573]
[1644915872376,5.14803852,3082.7,3082.1,0.60837573]
[1644915872574,5.14803852,3082.7,3082.4,0.00985588]
[1644915872575,4.33691852,3082.7,3082.4,0.00985588]
[1644915872770,0.81112,3082.7,3082.4,0.00985588]
[1644915873170,1.6223097,3082.7,3082.4,0.00985588]
[1644915873372,1.11121,3082.6,3081.8,0.00713996]
[1644915873571,0.81121,3082.4,3082.0,0.81121]
[1644915873872,4.41204778,3082.7,3082.4,0.00985588]
[1644915873873,3.2395947,3082.7,3082.4,0.00985588]
[1644915874070,2.78820644,3082.8,3082.4,0.00985588]
[1644915874270,2.4335728,3082.7,3082.4,0.00985588]
[1644915874671,0.81117,3082.6,3082.2,0.81116]
[1644915874917,0.81117,3082.6,3082.4,0.00985588]
[1644915875122,1.62242,3082.7,3082.5,79.7245]
[1644915875418,0.81115,3082.8,3082.5,79.7245]
[1644915875619,5.07145634,3082.8,3082.5,79.7245]
[1644915876020,5.37145634,3082.8,3082.5,79.73415523]
[1644915876220,0.92731068,3082.7,3082.5,79.73415523]
[1644915876421,5.05543874,3082.7,3082.5,79.73415523]
[1644915876618,1.62241,3082.7,3082.5,79.73415523]
[1644915876819,2.43364,3082.7,3082.5,79.73415523]
[1644915877019,0.81123,3082.7,3082.5,79.7245]
[1644915877721,1.11115,3082.8,3082.5,79.7245]
[1644915877918,1.92228,3082.8,3082.5,79.7245]
[1644915878518,1.92228,3082.8,3082.5,79.73382261]
[1644915878768,2.7334001,3082.8,3082.5,79.73382261]
[1644915879371,2.7334001,3082.8,3082.5,80.53561]
[1644915879570,1.0,3082.7,3082.5,80.53561]
[1644915879770,1.0,3082.7,3082.5,80.54497745]
[1644915879970,1.81115,3082.7,3082.5,79.73386745]
[1644915880569,1.81115,3082.7,3082.5,79.7245]
[1644915880970,3.43352,3082.7,3082.5,79.7245]
[1644915881171,2.6223,3082.7,3082.5,79.7245]
[1644915881573,5.96718882,3082.7,3082.5,79.7245]
[1644915881771,2.9223,3082.7,3082.5,79.7245]
[1644915882175,3.77078714,3082.7,3082.5,79.7245]
[1644915884419,2.9223,3082.7,3082.5,79.7245]
[1644915886468,1.04962121,3082.6,3082.5,79.7245]
[1644915889271,1.51662121,3082.6,3082.5,79.7245]
[1644915889474,1.51662121,3082.6,3082.5,58.24091023]
[1644915889475,0.467,3082.6,3082.5,58.24091023]
[1644915889672,1.75023518,3082.6,3082.5,58.24091023]
[1644915889919,2.87503518,3082.6,3082.5,57.7433871]
[1644915890119,2.87343518,3082.6,3082.5,57.7433871]
[1644915890319,3.87343518,3082.6,3082.5,57.7433871]
[1644915890522,3.87183518,3082.6,3082.5,57.7433871]
[1644915890725,2.75023518,3082.6,3082.5,57.7433871]
[1644915890922,1.48096543,3082.6,3082.5,57.7433871]
[1644915892320,0.48096543,3082.6,3082.5,57.7433871]
[1644915892619,1.48096543,3082.6,3082.5,57.7433871]
[1644915893224,0.48096543,3082.6,3082.5,57.7433871]
[1644915893421,1.48096543,3082.6,3082.5,57.7433871]
[1644915893667,0.48096543,3082.6,3082.5,56.27084793]
[1644915893872,1.48096543,3082.6,3082.5,56.27084793]
[1644915894068,0.48096543,3082.6,3082.5,56.27084793]
[1644915894269,1.48096543,3082.6,3082.5,56.27084793]
[1644915894870,4.81950709,3082.6,3082.5,56.27084793]
[1644915895070,6.083295,3082.6,3082.5,56.27084793]
[1644915895271,2.74475334,3082.6,3082.5,56.27084793]
[1644915896772,6.10486968,3082.6,3082.5,56.27084793]
[1644915896973,2.74475334,3082.6,3082.5,56.27084793]
[1644915897172,2.74450696,3082.6,3082.5,56.27084793]
[1644915898619,2.74450696,3082.6,3082.5,51.40244423]
[1644915898819,6.07867089,3082.6,3082.5,51.40244423]
[1644915899019,6.07867089,3082.6,3082.5,46.53378973]
[1644915899020,11.20267089,3082.6,3082.5,46.53378973]
[1644915899218,7.86850696,3082.6,3082.5,46.53378973]
[1644915899419,7.87010696,3082.6,3082.5,46.53378973]
[1644915899618,7.86690696,3082.6,3082.5,46.53378973]
[1644915899820,7.87010696,3082.6,3082.5,46.53378973]
[1644915900020,2.87010696,3082.6,3082.5,46.53378973]
[1644915900219,2.86930696,3082.6,3082.5,46.34222258]
[1644915900419,2.87490696,3082.6,3082.5,46.34222258]
[1644915900624,2.87410696,3082.6,3082.5,45.85122258]
[1644915900822,3.87650696,3082.6,3082.5,45.85122258]
[1644915901024,23.99717096,3082.6,3082.5,45.85122258]
[1644915901274,25.10838597,3082.6,3082.5,8.61808696]
[1644915901476,59.165044,3082.6,3082.4,207.8817395]
[1644915901681,59.165044,3082.6,3082.4,200.42325299]
[1644915901682,2.88152654,3082.5,3082.4,200.42325299]
[1644915901874,5.64852654,3082.5,3082.4,183.53873758]
[1644915902173,25.76999054,3082.5,3082.4,173.72197565]
[1644915902573,25.76999054,3082.5,3082.4,168.34911717]
[1644915902774,5.81053562,3082.5,3082.4,167.08457254]
[1644915902974,27.97929494,3082.5,3082.4,162.21535254]
[1644915903578,27.97929494,3082.5,3082.4,156.43070993]
[1644915903776,27.97929494,3082.5,3082.4,151.12167151]
[1644915903975,28.59505176,3082.5,3082.4,151.12167151]
[1644915904175,33.59505176,3082.5,3082.4,146.25225151]
[1644915904577,28.59505176,3082.5,3082.4,146.25225151]
[1644915905216,28.59505176,3082.5,3082.4,145.77810238]
[1644915905419,28.30714494,3082.5,3082.4,135.58535538]
[1644915905820,28.45914494,3082.5,3082.4,135.58535538]
[1644915906017,28.45754494,3082.5,3082.4,130.71601538]
[1644915906418,28.45674494,3082.5,3082.4,130.71601538]
[1644915906820,33.45674494,3082.5,3082.4,130.71601538]
[1644915907019,28.45594494,3082.5,3082.4,130.71601538]
[1644915907218,29.07004794,3082.5,3082.4,125.35657538]
[1644915907418,29.07404794,3082.5,3082.4,125.35657538]
[1644915907620,61.15335171,3082.5,3082.4,118.02143988]
[1644915907820,33.29934494,3082.5,3082.4,104.55032975]
[1644915908023,31.08764054,3082.5,3082.4,104.55032975]
[1644915908524,31.08684054,3082.5,3082.4,91.99259935]
[1644915908770,26.08764054,3082.5,3082.4,91.99259935]
[1644915908972,26.08764054,3082.5,3082.4,57.90259769]
[1644915908973,31.37564054,3082.5,3082.4,57.90259769]
[1644915909171,123.93696488,3082.5,3082.4,32.36036332]
[1644915909378,201.0659283,3082.5,3082.4,19.82862987]
[1644915909576,201.4623095,3082.5,3082.4,6.36630869]
[1644915909769,0.81175,3082.3,3081.6,0.001]
[1644915909968,5.0,3081.7,3081.2,0.00813996]
[1644915910171,5.0,3081.7,3080.2,0.001]
[1644915910172,0.61628466,3081.5,3080.2,0.001]
[1644915910370,5.72291166,3081.4,3080.2,0.001]
[1644915910571,0.79654153,3081.3,3080.2,0.001]
[1644915910772,8.07532153,3081.2,3080.3,0.04263176]
[1644915910969,1.62352,3081.0,3080.3,0.04263176]
[1644915911177,1.62352,3081.0,3080.6,0.009014]
[1644915911178,23.82050353,3080.9,3080.6,0.009014]
[1644915911473,23.82050353,3080.9,3080.7,0.04035806]
[1644915911474,1.79654153,3080.8,3080.7,0.04035806]
[1644915911670,2.26354153,3080.8,3080.7,0.04035806]
[1644915912070,5.51084153,3080.8,3080.7,0.04035806]
[1644915912521,6.51084153,3080.8,3080.6,0.00901413]
[1644915912720,5.7143,3080.8,3080.7,0.04035806]
[1644915912921,5.4292657,3080.8,3080.7,0.04035806]
[1644915913120,6.4292657,3080.8,3080.7,0.04035806]
[1644915913323,7.47848289,3080.8,3080.7,0.04035806]
[1644915913522,0.81188,3080.3,3079.6,0.001]
[1644915914024,0.81188,3080.3,3079.5,0.001]
[1644915914025,1.27888,3080.3,3079.5,0.001]
[1644915914222,1.27888,3080.3,3079.3,0.001]
[1644915914420,1.27888,3080.3,3079.3,0.81289]
[1644915914622,0.81191,3080.0,3079.3,0.001]
[1644915914823,1.57891,3080.0,3079.3,0.001]
[1644915915123,3.83988616,3079.9,3079.3,0.001]
[1644915915322,0.467,3079.8,3079.3,0.001]
[1644915915522,1.6242136,3079.6,3079.3,0.001]
[1644915915723,4.81693069,3079.5,3079.3,0.001]
[1644915916023,1.57914,3079.5,3079.3,0.001]
[1644915916268,3.48878573,3079.4,3079.3,0.001]
[1644915916469,1.40525872,3079.5,3079.3,0.001]
[1644915916869,0.81215,3079.4,3079.3,0.001]
[1644915917074,0.467,3079.5,3079.3,0.001]
[1644915917271,1.0,3079.6,3079.3,0.001]
[1644915917475,0.467,3079.9,3079.3,0.001]
[1644915918071,0.81195,3079.7,3079.3,0.001]
[1644915918271,1.62398,3079.7,3079.4,0.00984835]
[1644915919274,0.3,3079.5,3079.3,0.001]
[1644915919472,0.81205,3079.4,3079.3,0.001]
[1644915919671,1.11205,3079.4,3079.3,0.001]
[1644915919924,0.3,3079.5,3078.9,0.03859584]
[1644915920326,4.01380903,3079.5,3078.9,0.03859584]
[1644915920624,0.81212,3079.3,3078.7,0.13919997]
[1644915920824,0.81212,3079.3,3079.0,0.00964849]
[1644915921023,4.32954132,3079.3,3079.0,0.00964849]
[1644915921226,0.81212,3079.3,3079.0,0.00964849]
[1644915921725,0.81212,3079.3,3078.7,0.001]
[1644915921928,0.81212,3079.3,3079.0,0.00964863]
[1644915922126,3.51955782,3079.2,3079.0,0.00964863]
[1644915922325,1.0,3079.1,3078.6,2.77418153]
[1644915922526,1.62436,3079.0,3078.5,0.03860033]
[1644915922726,0.81219,3079.0,3078.5,0.03860033]
[1644915922925,0.81219,3079.0,3078.2,7.43]
[1644915923127,4.59172212,3079.1,3078.2,7.43]
[1644915923527,0.81218,3078.9,3078.2,7.43]
[1644915923766,1.11219,3079.0,3078.2,7.43]
[1644915923969,2.11219,3079.0,3078.2,7.43]
[1644915924167,1.11219,3079.0,3078.2,7.43]
[1644915924367,2.11219,3079.0,3078.2,7.43]
[1644915924570,1.11219,3079.0,3078.2,7.43]
[1644915924768,2.11214,3079.0,3078.2,7.43]
[1644915924969,2.11214,3079.0,3078.3,9.55379566]
[1644915925170,1.3,3079.0,3078.4,0.38374072]
[1644915925370,0.3,3079.0,3078.4,0.38374072]
[1644915925771,0.3,3079.0,3078.5,0.00863607]
[1644915925772,0.81216,3078.9,3078.5,0.00863607]
[1644915925975,0.467,3078.8,3078.5,0.01554989]
[1644915926674,0.467,3078.8,3078.5,0.00691382]
[1644915926973,0.81234,3078.7,3078.5,0.00691382]
[1644915927174,0.467,3078.6,3078.5,0.00691382]
[1644915928022,0.467,3078.6,3078.5,0.39065454]
[1644915928219,0.467,3078.6,3078.5,0.38374072]
[1644915928421,0.467,3078.6,3078.5,0.39065454]
[1644915928620,3.967,3078.6,3078.5,0.39065454]
[1644915928821,4.967,3078.6,3078.5,0.39065454]
[1644915929120,5.267,3078.6,3078.5,0.39065454]
[1644915929320,5.267,3078.6,3078.5,0.1922961]
[1644915929922,5.3894,3078.6,3078.5,0.1922961]
[1644915930120,5.267,3078.6,3078.5,0.1922961]
[1644915930324,25.510064,3078.6,3078.5,0.1922961]
[1644915930521,25.512464,3078.6,3078.5,0.1922961]
[1644915930921,25.514064,3078.6,3078.5,0.1922961]
[1644915931170,25.513264,3078.6,3078.5,0.1922961]
[1644915931567,25.514064,3078.6,3078.5,0.1922961]
[1644915931767,25.513264,3078.6,3078.5,0.1922961]
[1644915931968,25.513264,3078.6,3078.4,0.00987837]
[1644915931969,0.81255,3078.3,3077.9,0.03951942]
[1644915932170,10.60166332,3078.2,3077.9,0.03951942]
[1644915932371,1.467,3078.1,3077.9,0.03951942]
[1644915932569,2.8926,3078.1,3076.7,10.2097]
[1644915932769,0.3,3078.0,3076.7,10.2097]
[1644915932968,0.81254,3077.8,3076.7,10.2097]
[1644915933169,3.55037,3077.8,3076.7,4.4773]
[1644915933371,0.3,3077.7,3076.7,4.4773]
[1644915933571,1.3,3077.7,3076.7,4.4773]
[1644915934172,0.81264,3077.6,3076.7,4.4773]
[1644915934572,1.62524,3077.6,3076.7,4.4773]
[1644915935221,1.62524,3077.6,3077.2,3.90236969]
[1644915936121,0.81264,3077.5,3077.2,3.90236969]
[1644915936324,0.3,3077.5,3077.2,3.89249685]
[1644915936523,0.3,3077.5,3077.2,3.90236969]
[1644915936721,1.11249,3077.7,3077.2,3.90236969]
[1644915936923,1.0,3077.8,3077.2,3.90236969]
[1644915937122,3.998294,3078.1,3077.2,5.52707439]
[1644915937329,0.130142,3078.3,3077.6,4.99091041]
[1644915937526,0.1296,3078.8,3077.6,4.99091041]
[1644915937527,0.128,3078.8,3077.7,3.5]
[1644915937724,0.0043324,3078.9,3077.7,3.81250179]
[1644915937924,0.0043324,3078.9,3077.8,1.0]
[1644915938123,0.0043324,3078.9,3078.1,0.81204]
[1644915938325,0.0043324,3078.9,3078.4,0.8120073]
[1644915938523,0.0043324,3078.9,3077.5,1.0]
[1644915938524,2.11544818,3079.1,3077.6,11.2466]
[1644915938771,2.11544818,3079.1,3077.6,3.5]
[1644915939077,0.0043338,3078.9,3078.2,0.00987009]
[1644915939470,0.0043338,3078.9,3078.3,0.812164]
[1644915939872,0.3,3078.9,3078.3,0.812164]
[1644915940073,0.30433387,3078.9,3078.3,0.812164]
[1644915940270,0.00433387,3078.9,3078.3,0.812164]
[1644915940470,0.81651387,3078.9,3078.3,0.812164]
[1644915940670,0.81651387,3078.9,3078.2,0.00987011]
[1644915941170,0.81218,3078.9,3078.2,0.00987011]
[1644915941379,0.467,3078.8,3078.2,0.00987011]
[1644915941575,1.40414,3078.8,3078.2,0.00987011]
[1644915941771,1.11236,3078.6,3078.2,0.00987011]
[1644915941972,1.87936,3078.6,3078.2,0.00987011]
[1644915942272,1.067,3078.6,3077.6,0.8123318]
[1644915942727,0.81234,3078.3,3077.6,0.8123318]
[1644915943125,1.11234,3078.3,3077.6,0.8123318]
[1644915943323,1.11234,3078.3,3077.7,0.8122973]
[1644915943525,1.0,3078.5,3077.7,0.8122973]
[1644915943526,1.62454,3078.8,3077.7,0.8122973]
[1644915943724,1.62449,3078.6,3077.8,0.00986257]
[1644915943925,2.43681,3078.6,3077.8,0.00986257]
[1644915944125,1.62457,3078.6,3077.8,0.00986257]
[1644915944327,0.81225,3078.6,3077.8,0.00986257]
[1644915944525,0.81225,3078.6,3077.5,3.26870257]
[1644915944726,0.81232,3078.4,3077.7,0.99111525]
[1644915944927,0.81232,3078.4,3078.0,0.00986187]
[1644915945126,1.62463,3078.4,3078.0,0.00986187]
[1644915945329,1.92463,3078.4,3078.0,0.00986187]
[1644915945726,1.92463,3078.4,3077.6,0.812335]
[1644915945926,1.92463,3078.4,3077.4,2.59675351]
[1644915946169,0.81232,3078.3,3078.0,0.00986187]
[1644915946370,1.62464,3078.3,3078.0,0.00986187]
[1644915946970,1.62464,3078.3,3077.8,0.00684597]
[1644915947372,1.62464,3078.3,3078.0,0.00986201]
[1644915947770,0.3,3078.4,3078.0,0.00986201]
[1644915948172,0.3,3078.5,3078.0,0.00684597]
[1644915948371,0.3,3078.5,3078.0,0.01670784]
[1644915948575,1.11225,3078.6,3078.0,0.00986187]
[1644915948974,0.81229,3078.4,3078.0,0.00986187]
[1644915949175,1.11225,3078.6,3078.0,0.00986187]
[1644915949376,0.3,3078.3,3077.7,0.8122978]
[1644915949576,1.11225,3078.6,3078.0,0.00986187]
[1644915950018,0.81229,3078.4,3078.0,0.00986187]
[1644915950218,1.63994468,3078.4,3078.0,0.00986187]
[1644915950627,1.63994468,3078.4,3078.1,1.6244778]
[1644915950628,1.62457,3078.2,3078.1,1.6244778]
[1644915951724,0.8124,3078.1,3078.0,1.64134762]
[1644915951926,0.8124,3078.1,3078.0,0.00684575]
[1644915951927,4.3973799,3078.1,3078.0,0.00684575]
[1644915952120,4.3973799,3078.1,3078.0,0.00986201]
[1644915952121,5.99980034,3078.1,3078.0,0.00986201]
[1644915952321,6.99980034,3078.1,3078.0,0.00986201]
[1644915952718,7.29980034,3078.1,3078.0,0.00986201]
[1644915952918,3.71482044,3078.1,3078.0,0.00986201]
[1644915953119,0.44214,3077.9,3077.8,0.00684575]
[1644915954191,1.81249,3078.0,3077.8,0.00684575]
[1644915954489,1.81249,3078.0,3077.7,7.01670859]
[1644915954490,0.83527448,3077.9,3077.7,7.01670859]
[1644915955290,0.81249,3078.0,3077.8,3.20224637]
[1644915955489,0.44214,3078.7,3077.7,7.00684575]
[1644915955689,0.83644344,3078.6,3077.7,7.00684575]
[1644915955891,0.83645425,3078.5,3077.7,7.00684575]
[1644915956088,0.83645425,3078.4,3077.7,7.00684575]
[1644915956288,0.83645425,3078.3,3077.9,0.8122906]
[1644915956490,0.83645425,3078.2,3077.9,2.25720682]
[1644915956888,0.83645425,3078.2,3077.9,2.26706897]
[1644915957088,0.83645425,3078.2,3077.9,1.63457215]
[1644915957523,0.83645425,3078.2,3077.9,2.44691955]
[1644915957722,1.64882425,3078.2,3078.0,0.81236]
[1644915957925,0.81237,3078.2,3078.0,0.81236]
[1644915958123,0.81813173,3078.1,3078.0,0.81236]
[1644915958528,1.81237,3078.2,3078.0,0.81236]
[1644915958726,0.8181418,3078.1,3078.0,0.81236]
[1644915959925,0.8181418,3078.2,3078.0,0.81236]
[1644915960227,0.8181418,3078.1,3078.0,0.81236]
[1644915960627,2.4428718,3078.2,3078.0,0.81236]
[1644915960929,0.8181418,3078.1,3078.0,0.81236]
[1644915961375,1.8181418,3078.1,3078.0,0.81236]
[1644915962576,0.8181418,3078.1,3078.0,1.70068005]
[1644915962778,0.44214,3078.7,3078.0,4.62310987]
[1644915962976,0.44214,3078.7,3078.1,0.8122221]
[1644915962977,0.82011838,3078.6,3078.1,0.8122221]
[1644915963176,0.82011838,3078.6,3078.2,0.81214]
[1644915963376,0.82011838,3078.5,3078.2,0.81214]
[1644915963579,0.82011838,3078.4,3078.2,0.81214]
[1644915963780,1.62451,3078.7,3078.2,0.81214]
[1644915963781,0.82011838,3078.3,3078.2,0.81214]
[1644915963978,0.81223,3078.5,3078.2,0.81214]
[1644915964377,0.82011838,3078.4,3078.2,2.4364747]
[1644915967023,0.82011838,3078.3,3078.2,2.4364747]
[1644915967423,0.82011838,3078.6,3078.2,2.98558224]
[1644915967624,0.82011838,3078.5,3078.2,2.4364747]
[1644915967823,0.82011838,3078.4,3078.2,2.4364747]
[1644915968028,0.82011838,3078.4,3078.3,0.55149996]
[1644915969283,0.82011838,3078.4,3078.2,2.74632742]
[1644915969884,0.82011838,3078.4,3078.2,2.4364747]
[1644915970085,0.82011838,3078.4,3078.2,2.44321728]
[1644915970387,1.12011838,3078.4,3078.2,0.81888258]
[1644915970592,0.82011838,3078.3,3078.2,0.81888258]
[1644915972289,0.82011838,3078.3,3078.2,1.37092131]
[1644915972523,1.44003585,3078.7,3078.2,1.37092131]
[1644915972724,0.82011838,3078.6,3078.2,1.6242392]
[1644915972925,0.82011838,3078.5,3078.3,0.00674258]
[1644915973124,0.82011838,3078.4,3078.3,0.81895258]
[1644915973324,2.24435747,3078.7,3078.3,0.5532195]
[1644915973325,0.81225,3078.5,3078.3,0.5532195]
[1644915973623,0.81225,3078.5,3078.3,0.00674258]
[1644915973624,0.82011838,3078.4,3078.3,0.00674258]
[1644915973832,0.82011838,3078.4,3078.3,0.81894788]
[1644915974025,0.82011838,3078.5,3078.3,0.55321599]
[1644915974228,0.82011838,3078.5,3078.3,0.00674258]
[1644915974229,0.82011838,3078.4,3078.3,0.00674258]
[1644915974425,0.82011838,3078.4,3078.3,0.54980811]
[1644915974926,0.82011838,3078.4,3078.3,0.00674258]
[1644915975125,0.82011838,3078.4,3078.2,0.8212671]
[1644915975326,1.63244838,3078.4,3078.3,0.54305443]
[1644915975529,1.63244838,3078.4,3078.3,0.54976453]
[1644915976670,1.63244838,3078.4,3078.3,0.54976041]
[1644915976874,1.63244838,3078.4,3078.3,0.0067101]
[1644915977671,1.63244838,3078.4,3078.3,0.5496634]
[1644915977870,1.63244838,3078.4,3078.3,0.0067101]
[1644915978071,1.63244838,3078.4,3078.3,0.54966364]
[1644915978275,1.63244838,3078.4,3078.3,0.54969785]
[1644915978474,1.63244838,3078.4,3078.3,0.54211485]
[1644915978673,1.63244838,3078.4,3078.3,0.0067101]
[1644915978874,1.63244838,3078.4,3078.3,0.54210491]
[1644915979072,1.63244838,3078.4,3078.3,0.0067101]
[1644915979272,1.63244838,3078.4,3078.3,0.54206035]
[1644915979475,1.63244838,3078.4,3078.3,0.0067101]
[1644915979672,1.63244838,3078.4,3078.3,0.54206988]
[1644915979920,1.63244838,3078.4,3078.3,0.54217024]
[1644915979921,0.82011838,3078.4,3078.3,0.54217024]
[1644915980122,0.82011838,3078.4,3078.3,0.5421636]
[1644915980322,0.82011838,3078.4,3078.3,0.54218715]
[1644915980524,0.82011838,3078.4,3078.3,0.0067101]
[1644915980721,0.82011838,3078.4,3078.3,0.54223821]
[1644915980923,0.82011838,3078.4,3078.3,3.76543113]
[1644915981122,0.837801,3078.4,3078.3,3.76543113]
[1644915981321,0.00433361,3078.9,3078.3,2.16659024]
[1644915981322,0.83781289,3078.8,3078.3,2.16659024]
[1644915981529,0.8378116,3078.7,3078.4,0.53542924]
[1644915981723,0.8378116,3078.6,3078.4,0.53542924]
[1644915981923,0.8378116,3078.5,3078.4,1.34761924]
[1644915982129,0.8378116,3078.5,3078.4,0.53542924]
[1644915983128,1.6499616,3078.6,3078.3,0.96860068]
[1644915983325,0.8378116,3078.5,3078.3,0.96860068]
[1644915983528,0.8378116,3078.4,3078.3,0.96860068]
[1644915983774,0.8378116,3078.4,3078.3,1.53171815]
[1644915984178,0.8378116,3078.4,3078.3,0.56985791]
[1644915984381,1.1378116,3078.4,3078.3,0.0067101]
[1644915985276,0.91991747,3078.4,3078.3,0.0067101]
[1644915985476,1.75772907,3078.4,3078.3,0.0067101]
[1644915985876,0.8378116,3078.4,3078.3,0.0067101]
[1644915986076,2.1378116,3078.4,3078.3,0.0067101]
[1644915986276,1.75772907,3078.4,3078.3,0.0067101]
[1644915986476,1.1378116,3078.4,3078.3,0.0067101]
[1644915986879,1.75772907,3078.4,3078.3,0.0067101]
[1644915987078,1.1378116,3078.4,3078.3,0.0067101]
[1644915987281,1.75772907,3078.4,3078.3,0.0067101]
[1644915987524,2.1378116,3078.4,3078.3,0.0067101]
[1644915987724,0.81239,3078.3,3078.2,0.00918659]
[1644915987924,2.27062882,3078.3,3078.2,0.00918659]
[1644915988124,2.27062882,3078.3,3077.4,1.62479]
[1644915988325,2.27062882,3078.3,3077.2,3.89249685]
[1644915988326,2.43281722,3078.3,3078.2,0.00918659]
[1644915988527,3.24365744,3078.3,3078.2,0.00918659]
[1644915989125,3.24365744,3078.3,3077.9,1.6246]
[1644915989326,0.81084022,3078.2,3078.0,0.56997874]
[1644915989527,0.81084022,3078.2,3078.1,0.57062106]
[1644915990125,0.81084022,3078.2,3078.1,1.38296106]
[1644915990526,0.81084022,3078.2,3078.1,1.37377421]
[1644915990725,0.81084022,3078.2,3078.1,0.81234]
[1644915991172,1.92323022,3078.2,3078.0,0.00918713]
[1644915991375,1.92323022,3078.2,3078.0,0.82156713]
[1644915991574,0.81084022,3078.1,3078.0,0.8190901]
[1644915991771,0.81084022,3078.1,3078.0,1.38057565]
[1644915992973,0.81084022,3078.1,3078.0,0.56819565]
[1644915993173,0.81084022,3078.1,3078.0,0.0067101]
[1644915993574,2.11084022,3078.1,3078.0,0.0067101]
[1644915993775,1.81084022,3078.1,3078.0,0.0067101]
[1644915995026,3.43563022,3078.1,3078.0,0.0067101]